Workbook

Sheet 2023-1
C1: JANVIER 2023 | K1: FÉVRIER 2023 | S1: MARS 2023
C2: 30-06 | D2: 07-13 | E2: 14-20 | F2: 21-27 | G2: 28-03 | K2: 28-03 | L2: 04-10 | M2: 11-17 | N2: 18-24 | O2: 25-31 | S2: 01-07 | T2: 08-14 | U2: 15-21 | V2: 22-28 | W2: 29-05
B4: Dépôts A | D4: 300 | F4: 300 | J4: Dépôts A | L4: 350 | N4: 350 | R4: Dépôts A | T4: 400 | V4: 400
B5: Dépôts B | C5: 200 | E5: 200 | G5: 250 | J5: Dépôts B | K5: 250 | M5: 250 | O5: 250 | R5: Dépôts B | S5: 300 | U5: 300 | W5: 300
A7: DÉPENSES | B7: TOTAL | C7: =SUM(C3:G6) -> 1250 | I7: DÉPENSES | J7: TOTAL | K7: =SUM(K3:O6) -> 1450 | Q7: DÉPENSES | R7: TOTAL | S7: =SUM(S3:W6) -> 1700
A8: A | F8: 380 | I8: A | N8: 390 | Q8: A | V8: 400
A9: B | E9: 10 | I9: B | M9: 10 | Q9: B | U9: 10
A10: C | D10: 280 | I10: C | L10: 290 | Q10: C | T10: 300
A11: D | C11: 30 | G11: 40 | I11: D | K11: 40 | Q11: D | S11: 50
A12: E | E12: 180 | I12: E | M12: 190 | Q12: E | U12: 200
A13: F | I13: F | O13: 50 | Q13: F | W13: 60
A14: G | I14: G | O14: 10 | Q14: G | W14: 10
A15: H | D15: 180 | I15: H | L15: 190 | Q15: H | T15: 200
A16: I | C16: 10 | G16: 10 | I16: I | K16: 10 | Q16: I | S16: 10
A17: J | F17: 50 | I17: J | N17: 60 | Q17: J | V17: 70
A18: K | I18: K | O18: 50 | Q18: K | W18: 60
A19: TOTAL SEMAINE | C19: =SUM(C8:C18) -> 40 | D19: =SUM(D8:D18) -> 460 | E19: =SUM(E8:E18) -> 190 | F19: =SUM(F8:F18) -> 430 | G19: =SUM(G8:G18) -> 50 | I19: TOTAL SEMAINE | K19: =SUM(K8:K18) -> 50 | L19: =SUM(L8:L18) -> 480 | M19: =SUM(M8:M18) -> 200 | N19: =SUM(N8:N18) -> 450 | O19: =SUM(O8:O18) -> 110 | Q19: TOTAL SEMAINE | S19: =SUM(S8:S18) -> 60 | T19: =SUM(T8:T18) -> 500 | U19: =SUM(U8:U18) -> 210 | V19: =SUM(V8:V18) -> 470 | W19: =SUM(W8:W18) -> 130
A20: TOTAL MENSUEL | C20: =SUM(C19:G19) -> 1170 | I20: TOTAL MENSUEL | K20: =SUM(K19:O19) -> 1290 | Q20: TOTAL MENSUEL | S20: =SUM(S19:W19) -> 1370
A21: BALANCE | C21: =C7-C20 -> 80 | I21: BALANCE | K21: =K7-K20 -> 160 | Q21: BALANCE | S21: =S7-S20 -> 330
A22: CUMULATIF | C22: =1000+C21 -> 1080 | I22: CUMULATIF | K22: =1000+K21 -> 1160 | Q22: CUMULATIF | S22: =1000+S21 -> 1330
B24: Mois précédent | D24: 2000 | J24: Mois précédent | L24: =D27 -> 2200 | R24: Mois précédent | T24: =L27 -> 2520
B25: Dépôts | D25: 700 | J25: Dépôts | L25: 850 | R25: Dépôts | T25: 1000
B26: Retraits | D26: 500 | J26: Retraits | L26: 530 | R26: Retraits | T26: 560
B27: En caisse | D27: =D24+D25-D26 -> 2200 | J27: En caisse | L27: =L24+L25-L26 -> 2520 | R27: En caisse | T27: =T24+T25-T26 -> 2960
C30: AVRIL 2023 | K30: MAI 2023 | S30: JUIN 2023
C31: 29-05 | D31: 06-12 | E31: 13-19 | F31: 20-26 | G31: 28-04 | K31: 28-04 | L31: 05-11 | M31: 12-18 | N31: 19-25 | O31: 26-01 | S31: 02-08 | T31: 09-15 | U31: 16-22 | V31: 23-29 | W31: 30-06
B33: Dépôts A | D33: 400 | F33: 400 | J33: Dépôts A | L33: 450 | N33: 450 | R33: Dépôts A | T33: 500 | V33: 500
B34: Dépôts B | C34: 300 | E34: 300 | G34: 350 | J34: Dépôts B | K34: 350 | M34: 350 | O34: 350 | R34: Dépôts B | S34: 400 | U34: 400 | W34: 450
A36: DÉPENSES | B36: TOTAL | C36: =SUM(C32:G35) -> 1750 | I36: DÉPENSES | J36: TOTAL | K36: =SUM(K32:O35) -> 1950 | Q36: DÉPENSES | R36: TOTAL | S36: =SUM(S32:W35) -> 2250
A37: A | F37: 420 | I37: A | N37: 440 | Q37: A | V37: 480
A38: B | E38: 20 | I38: B | M38: 20 | Q38: B | U38: 30
A39: C | D39: 320 | I39: C | L39: 340 | Q39: C | T39: 380
A40: D | I40: D | Q40: D | S40: 80 | W40: 90
A41: E | E41: 220 | I41: E | M41: 240 | Q41: E | U41: 280
A42: F | C42: 60 | G42: 70 | I42: F | K42: 70 | O42: 80 | Q42: F
A43: G | C43: 10 | G43: 20 | I43: G | K43: 20 | O43: 30 | Q43: G
A44: H | D44: 220 | I44: H | L44: 240 | Q44: H | T44: 280
A45: I | I45: I | Q45: I | S45: 60 | W45: 70
A46: J | F46: 80 | I46: J | N46: 90 | Q46: J | V46: 100
A47: K | C47: 60 | G47: 70 | I47: K | K47: 70 | O47: 80 | Q47: K
A48: TOTAL SEMAINE | C48: =SUM(C37:C47) -> 130 | D48: =SUM(D37:D47) -> 540 | E48: =SUM(E37:E47) -> 240 | F48: =SUM(F37:F47) -> 500 | G48: =SUM(G37:G47) -> 160 | I48: TOTAL SEMAINE | K48: =SUM(K37:K47) -> 160 | L48: =SUM(L37:L47) -> 580 | M48: =SUM(M37:M47) -> 260 | N48: =SUM(N37:N47) -> 530 | O48: =SUM(O37:O47) -> 190 | Q48: TOTAL SEMAINE | S48: =SUM(S37:S47) -> 140 | T48: =SUM(T37:T47) -> 660 | U48: =SUM(U37:U47) -> 310 | V48: =SUM(V37:V47) -> 580 | W48: =SUM(W37:W47) -> 160
A49: TOTAL MENSUEL | C49: =SUM(C48:G48) -> 1570 | I49: TOTAL MENSUEL | K49: =SUM(K48:O48) -> 1720 | Q49: TOTAL MENSUEL | S49: =SUM(S48:W48) -> 1850
A50: BALANCE | C50: =C36-C49 -> 180 | I50: BALANCE | K50: =K36-K49 -> 230 | Q50: BALANCE | S50: =S36-S49 -> 400
A51: CUMULATIF | C51: =1000+C50 -> 1180 | I51: CUMULATIF | K51: =1000+K50 -> 1230 | Q51: CUMULATIF | S51: =1000+S50 -> 1400
B53: Mois précédent | D53: =T27 -> 2960 | J53: Mois précédent | L53: =D56 -> 3290 | R53: Mois précédent | T53: =L56 -> 3700
B54: Dépôts | D54: 1000 | J54: Dépôts | L54: 1150 | R54: Dépôts | T54: 1300
B55: Retraits | D55: 670 | J55: Retraits | L55: 740 | R55: Retraits | T55: 800
B56: En caisse | D56: =D53+D54-D55 -> 3290 | J56: En caisse | L56: =L53+L54-L55 -> 3700 | R56: En caisse | T56: =T53+T54-T55 -> 4200

Sheet 2023-2
C1: JUILLET 2023 | K1: AOÛT 2023 | S1: SEPTEMBRE 2023
C2: 30-06 | D2: 07-13 | E2: 14-20 | F2: 21-27 | G2: 28-03 | K2: 28-03 | L2: 04-10 | M2: 11-17 | N2: 18-24 | O2: 25-31 | S2: 01-07 | T2: 08-14 | U2: 15-21 | V2: 22-28 | W2: 29-05
B4: Dépôts A | D4: 550 | F4: 550 | J4: Dépôts A | L4: 600 | N4: 600 | R4: Dépôts A | T4: 650 | V4: 650
B5: Dépôts B | C5: 450 | E5: 450 | G5: 500 | J5: Dépôts B | K5: 500 | M5: 500 | O5: 500 | R5: Dépôts B | S5: 550 | U5: 550 | W5: 550
A7: DÉPENSES | B7: TOTAL | C7: =SUM(C3:G6) -> 2500 | I7: DÉPENSES | J7: TOTAL | K7: =SUM(K3:O6) -> 2700 | Q7: DÉPENSES | R7: TOTAL | S7: =SUM(S3:W6) -> 2950
A8: A | F8: 490 | I8: A | N8: 500 | Q8: A | V8: 510
A9: B | E9: 40 | I9: B | M9: 50 | Q9: B | U9: 60
A10: C | D10: 390 | I10: C | L10: 400 | Q10: C | T10: 410
A11: D | C11: 90 | G11: 100 | I11: D | K11: 100 | Q11: D | S11: 110
A12: E | E12: 290 | I12: E | M12: 300 | Q12: E | U12: 310
A13: F | I13: F | O13: 200 | Q13: F | W13: 210
A14: G | I14: G | O14: 100 | Q14: G | W14: 110
A15: H | D15: 290 | I15: H | L15: 300 | Q15: H | T15: 310
A16: I | C16: 70 | G16: 80 | I16: I | K16: 80 | Q16: I | S16: 90
A17: J | F17: 110 | I17: J | N17: 120 | Q17: J | V17: 130
A18: K | I18: K | O18: 200 | Q18: K | W18: 210
A19: TOTAL SEMAINE | C19: =SUM(C8:C18) -> 160 | D19: =SUM(D8:D18) -> 680 | E19: =SUM(E8:E18) -> 330 | F19: =SUM(F8:F18) -> 600 | G19: =SUM(G8:G18) -> 180 | I19: TOTAL SEMAINE | K19: =SUM(K8:K18) -> 180 | L19: =SUM(L8:L18) -> 700 | M19: =SUM(M8:M18) -> 350 | N19: =SUM(N8:N18) -> 620 | O19: =SUM(O8:O18) -> 500 | Q19: TOTAL SEMAINE | S19: =SUM(S8:S18) -> 200 | T19: =SUM(T8:T18) -> 720 | U19: =SUM(U8:U18) -> 370 | V19: =SUM(V8:V18) -> 640 | W19: =SUM(W8:W18) -> 530
A20: TOTAL MENSUEL | C20: =SUM(C19:G19) -> 1950 | I20: TOTAL MENSUEL | K20: =SUM(K19:O19) -> 2350 | Q20: TOTAL MENSUEL | S20: =SUM(S19:W19) -> 2460
A21: BALANCE | C21: =C7-C20 -> 550 | I21: BALANCE | K21: =K7-K20 -> 350 | Q21: BALANCE | S21: =S7-S20 -> 490
A22: CUMULATIF | C22: =1000+C21 -> 1550 | I22: CUMULATIF | K22: =1000+K21 -> 1350 | Q22: CUMULATIF | S22: =1000+S21 -> 1490
B24: Mois précédent | D24: ='2023-1'!T56 -> 4200 | J24: Mois précédent | L24: =D27 -> 4810 | R24: Mois précédent | T24: =L27 -> 5530
B25: Dépôts | D25: 1450 | J25: Dépôts | L25: 1600 | R25: Dépôts | T25: 1750
B26: Retraits | D26: 840 | J26: Retraits | L26: 880 | R26: Retraits | T26: 920
B27: En caisse | D27: =D24+D25-D26 -> 4810 | J27: En caisse | L27: =L24+L25-L26 -> 5530 | R27: En caisse | T27: =T24+T25-T26 -> 6360
C30: OCTOBRE 2023 | K30: NOVEMBRE 2023 | S30: DÉCEMBRE 2023
C31: 29-05 | D31: 06-12 | E31: 13-19 | F31: 20-26 | G31: 27-02 | K31: 27-02 | L31: 03-09 | M31: 10-16 | N31: 17-23 | O31: 24-30 | S31: 01-07 | T31: 08-14 | U31: 15-21 | V31: 22-28 | W31: 29-04
B33: Dépôts A | D33: 700 | F33: 700 | J33: Dépôts A | L33: 750 | N33: 750 | R33: Dépôts A | T33: 800 | V33: 800
B34: Dépôts B | C34: 550 | E34: 600 | G34: 600 | J34: Dépôts B | K34: 600 | M34: 650 | O34: 650 | R34: Dépôts B | S34: 700 | U34: 700 | W34: 700
A36: DÉPENSES | B36: TOTAL | C36: =SUM(C32:G35) -> 3150 | I36: DÉPENSES | J36: TOTAL | K36: =SUM(K32:O35) -> 3400 | Q36: DÉPENSES | R36: TOTAL | S36: =SUM(S32:W35) -> 3700
A37: A | F37: 520 | I37: A | N37: 530 | Q37: A | V37: 540
A38: B | E38: 70 | I38: B | M38: 80 | Q38: B | U38: 90
A39: C | D39: 420 | I39: C | L39: 430 | Q39: C | T39: 440
A40: D | I40: D | Q40: D | S40: 140
A41: E | E41: 320 | I41: E | M41: 330 | Q41: E | U41: 340
A42: F | C42: 210 | G42: 220 | I42: F | K42: 220 | O42: 230 | Q42: F | W42: 240
A43: G | C43: 110 | G43: 120 | I43: G | K43: 120 | O43: 130 | Q43: G | W43: 140
A44: H | D44: 320 | I44: H | L44: 330 | Q44: H | T44: 340
A45: I | I45: I | Q45: I | S45: 120
A46: J | F46: 140 | I46: J | N46: 150 | Q46: J | V46: 160
A47: K | C47: 210 | G47: 220 | I47: K | K47: 220 | O47: 230 | Q47: K | W47: 240
A48: TOTAL SEMAINE | C48: =SUM(C37:C47) -> 530 | D48: =SUM(D37:D47) -> 740 | E48: =SUM(E37:E47) -> 390 | F48: =SUM(F37:F47) -> 660 | G48: =SUM(G37:G47) -> 560 | I48: TOTAL SEMAINE | K48: =SUM(K37:K47) -> 560 | L48: =SUM(L37:L47) -> 760 | M48: =SUM(M37:M47) -> 410 | N48: =SUM(N37:N47) -> 680 | O48: =SUM(O37:O47) -> 590 | Q48: TOTAL SEMAINE | S48: =SUM(S37:S47) -> 260 | T48: =SUM(T37:T47) -> 780 | U48: =SUM(U37:U47) -> 430 | V48: =SUM(V37:V47) -> 700 | W48: =SUM(W37:W47) -> 620
A49: TOTAL MENSUEL | C49: =SUM(C48:G48) -> 2880 | I49: TOTAL MENSUEL | K49: =SUM(K48:O48) -> 3000 | Q49: TOTAL MENSUEL | S49: =SUM(S48:W48) -> 2790
A50: BALANCE | C50: =C36-C49 -> 270 | I50: BALANCE | K50: =K36-K49 -> 400 | Q50: BALANCE | S50: =S36-S49 -> 910
A51: CUMULATIF | C51: =1000+C50 -> 1270 | I51: CUMULATIF | K51: =1000+K50 -> 1400 | Q51: CUMULATIF | S51: =1000+S50 -> 1910
B53: Mois précédent | D53: =T27 -> 6360 | J53: Mois précédent | L53: =D56 -> 6940 | R53: Mois précédent | T53: =L56 -> 7620
B54: Dépôts | D54: 1850 | J54: Dépôts | L54: 2000 | R54: Dépôts | T54: 2200
B55: Retraits | D55: 1270 | J55: Retraits | L55: 1320 | R55: Retraits | T55: 1040
B56: En caisse | D56: =D53+D54-D55 -> 6940 | J56: En caisse | L56: =L53+L54-L55 -> 7620 | R56: En caisse | T56: =T53+T54-T55 -> 8780
